fUSD/lending_fUSD_20240518
["ID","MTS","AMOUNT","RATE_DAILY","PERIOD"]
[327365792,1716022263717,-651.74,0.00039497,16]
[327365793,1716022263728,-151.0,0.00039497,14]
[327365794,1716022263739,-151.0,0.00039497,14]
[327365795,1716022263751,-500.0,0.00039497,16]
[327365796,1716022263762,-151.0,0.00039497,14]
[327365797,1716022263773,-506.4880878,0.00039497,16]
[327365798,1716022263784,-500.0,0.00039497,16]
[327365799,1716022263796,-500.0,0.00039497,16]
[327365800,1716022263807,-500.0,0.00039497,16]
[327365801,1716022263818,-151.0,0.00039497,14]
[327365802,1716022263829,-945.88,0.00039497,16]
[327365803,1716022263840,-500.0,0.00039497,16]
[327365804,1716022263851,-884.64,0.00039497,16]
[327365805,1716022263861,-884.64,0.00039497,16]
[327365806,1716022263872,-945.88,0.00039497,16]
[327365807,1716022263885,-945.88,0.00039497,16]
[327365808,1716022263897,-945.88,0.00039497,16]
[327365809,1716022263910,-500.0,0.00039497,16]
[327365810,1716022263922,-151.0,0.00039497,14]
[327365811,1716022263935,-689.79,0.00039497,16]
[327365812,1716022263944,-689.79,0.00039497,16]
[327365813,1716022263954,-500.0,0.00039497,16]
[327365814,1716022263969,-500.0,0.00039497,16]
[327365815,1716022264242,-500.0,0.00039497,16]
[327365816,1716022264258,-500.0,0.00039497,16]
[327365817,1716022264269,-500.0,0.00039497,16]
[327365818,1716022264278,-500.0,0.00039497,16]
[327365819,1716022264287,-500.0,0.00039497,16]
[327365820,1716022264298,-618.93875623,0.00039497,16]
[327365821,1716022264307,-151.0,0.00039497,14]
[327365822,1716022264316,-1580.18,0.00039497,16]
[327365823,1716022264326,-1580.18,0.00039497,16]
[327365824,1716022264335,-593.11594522,0.00039497,16]
[327365825,1716022264344,-500.0,0.00039497,16]
[327365826,1716022264353,-500.0,0.00039497,16]
[327365827,1716022264362,-500.0,0.00039497,16]
[327365828,1716022264371,-544.12,0.00039497,16]
[327365829,1716022264381,-911.55,0.00039497,16]
[327365830,1716022264391,-500.0,0.00039497,16]
[327365831,1716022264400,-544.12,0.00039497,16]
[327365832,1716022264409,-544.12,0.00039497,16]
[327365833,1716022264419,-860.37,0.00039497,16]
[327365834,1716022264428,-544.12,0.00039497,16]
[327365835,1716022264437,-860.37,0.00039497,16]
[327365836,1716022264447,-860.37,0.00039497,16]
[327365837,1716022264456,-860.37,0.00039497,16]
[327365838,1716022264464,-500.0,0.00039497,16]
[327365839,1716022264473,-151.0,0.00039497,14]
[327365840,1716022264483,-151.0,0.00039497,14]
[327365841,1716022264492,-4281.78,0.00039497,16]
[327365842,1716022264502,-4281.78,0.00039497,16]
[327365843,1716022264511,-500.0,0.00039497,16]
[327365844,1716022264521,-4281.78,0.00039497,16]
[327365845,1716022264530,-500.0,0.00039497,16]
[327365846,1716022264540,-4281.78,0.00039497,16]
[327365847,1716022264550,-576.6,0.00039497,16]
[327365848,1716022264559,-1253.71,0.00039497,16]
[327365849,1716022264569,-500.0,0.00039497,16]
[327365850,1716022264578,-500.0,0.00039497,16]
[327365851,1716022264587,-500.0,0.00039497,16]
[327365852,1716022264597,-500.0,0.00039497,16]
[327365853,1716022264606,-1193.01,0.00039497,16]
[327365854,1716022264615,-1193.01,0.00039497,16]
[327365855,1716022264625,-151.0,0.00039497,14]
[327365856,1716022264635,-500.0,0.00039497,16]
[327365857,1716022264644,-500.0,0.00039497,16]
[327365858,1716022264654,-1526.26,0.00039497,16]
[327365859,1716022264664,-1526.26,0.00039497,16]
[327365860,1716022264674,-500.0,0.00039497,16]
[327365861,1716022264683,-500.0,0.00039497,16]
[327365862,1716022264692,-1526.26,0.00039497,16]
[327365863,1716022264702,-500.0,0.00039497,16]
[327365864,1716022264711,-500.0,0.00039497,16]
[327365865,1716022264720,-1526.26,0.00039497,16]
[327365866,1716022264729,-500.0,0.00039497,16]
[327365867,1716022264739,-500.0,0.00039497,16]
[327365868,1716022264752,-500.0,0.00039497,16]
[327365869,1716022264761,-869.3,0.00039497,16]
[327365870,1716022264771,-817.66,0.00039497,16]
[327365871,1716022264781,-817.66,0.00039497,16]
[327365872,1716022264790,-516.79530821,0.00039497,16]
[327365873,1716022264800,-500.0,0.00039497,16]
[327365874,1716022264809,-932.76,0.00039497,16]
[327365875,1716022264818,-932.76,0.00039497,16]
[327365876,1716022264827,-932.76,0.00039497,16]
[327365877,1716022264836,-932.76,0.00039497,16]
[327365878,1716022264846,-151.0,0.00039497,14]
[327365879,1716022264856,-500.0,0.00039497,16]
[327365880,1716022264865,-512.14,0.00039497,16]
[327365881,1716022264874,-500.0,0.00039497,16]
[327365882,1716022264883,-512.14,0.00039497,16]
[327365883,1716022264892,-500.0,0.00039497,16]
[327365884,1716022264902,-512.14,0.00039497,16]
[327365885,1716022264912,-500.0,0.00039497,16]
[327365886,1716022264921,-512.14,0.00039497,16]
[327365887,1716022264930,-1332.45,0.00039497,16]
[327365888,1716022264940,-1332.45,0.00039497,16]
[327365889,1716022264950,-520.51607718,0.00039497,16]
[327365890,1716022264959,-742.55,0.00039497,16]
[327365891,1716022264969,-742.55,0.00039497,16]
[327365892,1716022264978,-1117.83,0.00039497,16]
[327365893,1716022264987,-500.0,0.00039497,16]
[327365894,1716022264996,-508.2074322,0.00039497,16]
[327365895,1716022265006,-1909.94,0.00039497,16]
[327365896,1716022265015,-1047.18,0.00039497,16]
[327365897,1716022265024,-1047.18,0.00039497,16]
[327365898,1716022265033,-1047.18,0.00039497,16]
[327365899,1716022265043,-1047.18,0.00039497,16]
[327365900,1716022265051,-1331.25,0.00039497,16]
[327365901,1716022265061,-500.0,0.00039497,16]
[327365902,1716022265070,-1331.25,0.00039497,16]
[327365903,1716022265079,-500.0,0.00039497,16]
[327365904,1716022265088,-1331.25,0.00039497,16]
[327365905,1716022265098,-1331.25,0.00039497,16]
[327365906,1716022265107,-503.57414057,0.00039497,16]
[327365907,1716022265116,-151.0,0.00039497,14]
[327365908,1716022265125,-500.0,0.00039497,16]
[327365909,1716022265135,-500.0,0.00039497,16]
[327365910,1716022265146,-500.0,0.00039497,16]
[327365911,1716022265155,-500.0,0.00039497,16]
[327365912,1716022265166,-500.0,0.00039497,16]
[327365913,1716022265175,-151.0,0.00039497,14]
[327365914,1716022265184,-152.058772,0.00039497,14]
[327365915,1716022265194,-693.86,0.00039497,16]
[327365916,1716022265203,-4803.52,0.00039497,16]
[327365917,1716022265212,-4803.52,0.00039497,16]
[327365918,1716022265225,-2578.27,0.00039497,16]
[327365919,1716022265235,-501.33473506,0.00039497,16]
[327365920,1716022265244,-1043.31,0.00039497,16]
[327365921,1716022265253,-500.0,0.00039497,16]
[327365922,1716022265263,-1043.31,0.00039497,16]
[327365923,1716022265273,-1043.31,0.00039497,16]
[327365924,1716022265283,-1043.31,0.00039497,16]
[327365925,1716022265292,-500.0,0.00039497,16]
[327365926,1716022265304,-500.0,0.00039497,16]
[327365927,1716022265313,-500.0,0.00039497,16]
[327365928,1716022265323,-853.53,0.00039497,16]
[327365929,1716022265332,-500.0,0.00039497,16]
[327365930,1716022265341,-853.53,0.00039497,16]
[327365931,1716022265350,-874.22,0.00039497,16]
[327365932,1716022265359,-500.0,0.00039497,16]
[327365933,1716022265368,-874.22,0.00039497,16]
[327365934,1716022265377,-500.0,0.00039497,16]
[327365935,1716022265386,-874.22,0.00039497,16]
[327365936,1716022265395,-500.0,0.00039497,16]
[327365937,1716022265404,-874.22,0.00039497,16]
[327365938,1716022265414,-500.0,0.00039497,16]
[327365939,1716022265423,-500.0,0.00039497,16]
[327365940,1716022265431,-500.0,0.00039497,16]
[327365941,1716022265442,-500.0,0.00039497,16]
[327365942,1716022265451,-500.0,0.00039497,16]
[327365943,1716022265460,-589.74701838,0.00039497,16]
[327365944,1716022265469,-500.0,0.00039497,16]
[327365945,1716022265478,-2737.84,0.00039497,16]
[327365946,1716022265487,-500.0,0.00039497,16]
[327365947,1716022265496,-500.0,0.00039497,16]
[327365948,1716022265505,-500.0,0.00039497,16]
[327365949,1716022265514,-500.0,0.00039497,16]
[327365950,1716022265524,-500.0,0.00039497,16]
[327365951,1716022265533,-500.0,0.00039497,16]
[327365952,1716022265542,-9985.07,0.00039497,16]
[327365953,1716022265551,-500.0,0.00039497,16]
[327365954,1716022265561,-224.00047259,0.00039497,16]
[327365955,1716022265570,-771.37,0.00039497,16]
[327365956,1716022265579,-771.37,0.00039497,16]
[327365957,1716022265588,-500.0,0.00039497,16]
[327365958,1716022265597,-638.80265992,0.00039497,16]
[327365959,1716022265606,-547.75,0.00039497,16]
[327365960,1716022265616,-483.681734,0.00039497,14]
[327365961,1716022265625,-500.0,0.00039497,16]
[327365962,1716022265634,-547.75,0.00039497,16]
[327365963,1716022265643,-500.0,0.00039497,16]
[327365964,1716022265652,-5109.73,0.00039497,16]
[327365965,1716022265661,-547.75,0.00039497,16]
[327365966,1716022265671,-500.0,0.00039497,16]
[327365967,1716022265680,-547.75,0.00039497,16]
[327365968,1716022265689,-151.0,0.00039497,14]
[327365969,1716022265699,-500.0,0.00039497,16]
[327365970,1716022265708,-5109.73,0.00039497,16]
[327365971,1716022265717,-151.0,0.00039497,14]
[327365972,1716022265726,-5109.73,0.00039497,16]
[327365973,1716022265735,-5109.73,0.00039497,16]
[327365974,1716022265744,-504.73707715,0.00039497,16]
[327365975,1716022265754,-483.681734,0.00039497,14]
[327365976,1716022265764,-500.0,0.00039497,16]
[327365977,1716022265773,-1888.27,0.00039497,16]
[327365978,1716022265782,-316.37873061,0.00039497,16]
[327365979,1716022265791,-151.0,0.00039497,14]
[327365980,1716022265801,-151.0,0.00039497,14]
[327365981,1716022265811,-837.35,0.00039497,16]
[327365982,1716022265820,-837.35,0.00039497,16]
[327365983,1716022265830,-500.0,0.00039497,16]
[327365984,1716022265839,-500.0,0.00039497,16]
[327365985,1716022265848,-500.0,0.00039497,16]
[327365986,1716022265857,-599.45,0.00039497,16]
[327365987,1716022265866,-500.0,0.00039497,16]
[327365988,1716022265875,-599.45,0.00039497,16]
[327365989,1716022265884,-1123.68,0.00039497,16]
[327365990,1716022265893,-500.0,0.00039497,16]
[327365991,1716022265902,-500.0,0.00039497,16]
[327365992,1716022265911,-669.12,0.00039497,16]
[327365993,1716022265921,-500.0,0.00039497,16]
[327365994,1716022265929,-669.12,0.00039497,16]
[327365995,1716022265939,-500.0,0.00039497,16]
[327365996,1716022265948,-669.12,0.00039497,16]
[327365997,1716022265957,-500.0,0.00039497,16]
[327365998,1716022265966,-669.12,0.00039497,16]
[327365999,1716022265976,-500.0,0.00039497,16]
[327366000,1716022265986,-505.11749,0.00039497,16]
[327366001,1716022265995,-191.80211796,0.00039497,16]
[327366002,1716022266004,-759.22,0.00039497,16]
[327366003,1716022266013,-488.90023014,0.00039498,16]
[327366004,1716022266022,-608.42,0.00039498,16]
[327366005,1716022266032,-608.42,0.00039498,16]
[327366006,1716022266042,-608.42,0.00039498,16]
[327366007,1716022266051,-500.0,0.00039498,16]
[327366008,1716022266060,-500.0,0.00039498,16]
[327366009,1716022266068,-500.0,0.00039498,16]
[327366010,1716022266078,-500.0,0.00039498,16]
[327366011,1716022266087,-500.0,0.00039498,16]
[327366012,1716022266097,-500.0,0.00039498,16]
[327366013,1716022266106,-672.34,0.00039498,16]
[327366014,1716022266115,-672.34,0.00039498,16]
[327366015,1716022266124,-672.34,0.00039498,16]
[327366016,1716022266134,-540.18,0.00039498,16]
[327366017,1716022266143,-540.18,0.00039498,16]
[327366018,1716022266152,-540.18,0.00039498,16]
[327366019,1716022266162,-500.0,0.00039498,16]
[327366020,1716022266171,-500.0,0.00039498,16]
[327366021,1716022266180,-500.0,0.00039498,16]
[327366022,1716022266189,-500.0,0.00039498,16]
[327366023,1716022266199,-500.0,0.00039498,16]
[327366024,1716022266208,-500.0,0.00039498,16]
[327366025,1716022266219,-500.0,0.00039498,16]
[327366026,1716022266231,-500.0,0.00039498,16]
[327366027,1716022266240,-500.0,0.00039498,16]
[327366028,1716022266250,-500.0,0.00039498,16]
[327366029,1716022266259,-500.0,0.00039498,16]
[327366030,1716022266268,-500.0,0.00039498,16]
[327366031,1716022266278,-651.76,0.00039498,16]
[327366032,1716022266287,-651.76,0.00039498,16]
[327366033,1716022266296,-651.76,0.00039498,16]
[327366034,1716022266307,-721.24,0.00039498,16]
[327366035,1716022266317,-721.24,0.00039498,16]
[327366036,1716022266327,-721.24,0.00039498,16]
[327366037,1716022266336,-967.03,0.00039498,16]
[327366038,1716022266345,-967.03,0.00039498,16]
[327366039,1716022266354,-967.03,0.00039498,16]
[327366040,1716022266363,-804.77,0.00039498,16]
[327366041,1716022266372,-804.77,0.00039498,16]
[327366042,1716022266381,-804.77,0.00039498,16]
[327366043,1716022266390,-2308.42,0.00039498,16]
[327366044,1716022266399,-2308.42,0.00039498,16]
[327366045,1716022266409,-2308.42,0.00039498,16]
[327366046,1716022266419,-707.87,0.00039498,16]
[327366047,1716022266428,-707.87,0.00039498,16]
[327366048,1716022266437,-707.87,0.00039498,16]
[327366049,1716022266446,-2844.7,0.00039498,16]
[327366050,1716022266455,-2844.7,0.00039498,16]
[327366051,1716022266464,-2844.7,0.00039498,16]
[327366052,1716022266474,-500.0,0.00039498,16]
[327366053,1716022266483,-500.0,0.00039498,16]
[327366054,1716022266492,-500.0,0.00039498,16]
[327366055,1716022266501,-441.06594844,0.00039498,16]
[327366056,1716022267445,-844.47586163,0.00029,2]
[327366057,1716022267456,-636.58261256,0.00029,2]
[327366058,1716022267466,-500.0,0.00039491,16]
[327366059,1716022267476,-150.87744725,0.00039494,16]
[327366060,1716022267486,-389.31727688,0.00039496,16]
[327366061,1716022267498,-110.68272312,0.00039496,16]
[327366062,1716022267508,-198.63727708,0.00039496,16]
[327366063,1716022267530,-301.36272292,0.00039496,16]
[327366064,1716022267540,-500.0,0.00039497,16]
[327366065,1716022267550,-500.0,0.00039497,16]
[327366066,1716022267559,-58.93405156,0.00039498,16]
[327366067,1716022267568,-500.0,0.00039498,16]
[327366068,1716022267578,-67.84072552,0.00039498,16]
[327366069,1716022267589,-432.15927448,0.00039498,16]
[327366070,1716022267598,-602.10882052,0.00039498,16]
[327366071,1716022267609,-3494.50117948,0.00039498,16]
[327366072,1716022267618,-4096.61,0.00039498,16]
[327366073,1716022267627,-4096.61,0.00039498,16]
[327366074,1716022267637,-500.0,0.00039498,16]
[327366075,1716022267646,-500.0,0.00039498,16]
[327366076,1716022267655,-500.0,0.00039498,16]
[327366077,1716022267665,-500.0,0.00039498,16]
[327366078,1716022267674,-500.0,0.00039498,16]
[327366079,1716022267683,-500.0,0.00039498,16]
[327366080,1716022267692,-500.0,0.00039498,16]
[327366081,1716022267701,-500.0,0.00039498,16]
[327366082,1716022267710,-500.0,0.00039498,16]
[327366083,1716022267719,-593.8,0.00039498,16]
[327366084,1716022267728,-562.92709615,0.00039498,16]
[327366085,1716022267814,-30.87290385,0.00039498,16]
[327366086,1716022267823,-64.39717506,0.00039498,16]
[327366087,1716022267834,-529.40282494,0.00039498,16]
[327366088,1716022267843,-278.09719506,0.00039498,16]
[327366089,1716022267854,-1153.5,0.00039498,16]
[327366090,1716022267869,-496.27636977,0.00039498,16]
[327366091,1716022267881,-1580.55643517,0.00039498,16]
[327366092,1716022267890,-3508.43,0.00039498,16]
[327366093,1716022267899,-836.21207738,0.00039498,16]
[327366094,1716022268488,-373.5132,0.00039498,16]
[327366095,1716022268500,-867.11870689,0.00039498,16]
[327366096,1716022268511,-1431.58601573,0.00039498,16]
[327366097,1716022268520,-500.0,0.00039498,16]
[327366098,1716022268529,-500.0,0.00039498,16]
[327366099,1716022268538,-500.0,0.00039498,16]
[327366100,1716022268547,-4605.86,0.00039498,16]
[327366101,1716022268556,-4605.86,0.00039498,16]
[327366102,1716022268565,-4605.86,0.00039498,16]
[327366103,1716022268574,-500.0,0.00039498,16]
[327366104,1716022268585,-538.04980553,0.00039498,16]
[327366105,1716022268595,-500.0,0.00039498,16]
[327366106,1716022268604,-500.0,0.00039498,16]
[327366107,1716022268613,-500.0,0.00039498,16]
[327366108,1716022268622,-604.21,0.00039498,16]
[327366109,1716022268631,-604.21,0.00039498,16]
[327366110,1716022268641,-604.21,0.00039498,16]
[327366111,1716022268649,-2048.97395326,0.00039498,16]
[327366112,1716022268665,-880.21195323,0.00038046,2]
[327366113,1716022268677,-1554.47804677,0.00038046,2]
[327366114,1716022268686,-2983.76604674,0.00039498,16]
[327366115,1716022268695,-5032.74,0.00039498,16]
[327366116,1716022268704,-2646.58788771,0.00039498,16]
[327366117,1716022269399,-249.77430605,0.00038327,4]
[327366118,1716022269408,-5.86269395,0.00038355,4]
[327366119,1716022269421,-457.39864149,0.00038355,4]
[327366120,1716022269430,-215.734685,0.00039497,14]
[327366121,1716022269439,-215.734685,0.00039497,14]
[327366122,1716022269449,-2386.15211229,0.00039498,16]
[327366123,1716022269458,-500.0,0.00039498,16]
[327366124,1716022269467,-500.0,0.00039498,16]
[327366125,1716022269476,-500.0,0.00039498,16]
[327366126,1716022269485,-633.37884727,0.00039498,16]
[327366127,1716022269495,-500.0,0.00039498,16]
[327366128,1716022269504,-500.0,0.00039498,16]
[327366129,1716022269513,-500.0,0.00039498,16]
[327366130,1716022269523,-107.98933433,0.00039498,16]
[327366131,1716022269574,-392.01066567,0.00039498,16]
[327366132,1716022269583,-500.0,0.00039498,16]
[327366133,1716022269593,-500.0,0.00039498,16]
[327366134,1716022269602,-219.67933433,0.00039498,16]
[327366135,1716022269614,-3960.75066567,0.00039498,16]
[327366136,1716022269623,-4180.43,0.00039498,16]
[327366137,1716022269633,-4180.43,0.00039498,16]
[327366138,1716022269642,-448.17753071,0.00039498,16]
[327366139,1716022269651,-3748.3,0.00039498,16]
[327366140,1716022269661,-500.0,0.00039498,16]
[327366141,1716022269671,-3748.3,0.00039498,16]
[327366142,1716022269681,-500.0,0.00039498,16]
[327366143,1716022269691,-3748.3,0.00039498,16]
[327366144,1716022269700,-582.45895395,0.00039498,16]
[327366145,1716022269709,-500.0,0.00039498,16]
[327366146,1716022269719,-500.0,0.00039498,16]
[327366147,1716022269728,-15.35865364,0.00039498,16]
[327366148,1716022269780,-484.64134636,0.00039498,16]
[327366149,1716022269789,-341.47610882,0.00039498,16]
[327366150,1716022269803,-3349.68389118,0.00039498,16]
[327366151,1716022269813,-3691.16,0.00039498,16]
[327366152,1716022269822,-3691.16,0.00039498,16]
[327366153,1716022269831,-866.0,0.00039498,16]
[327366154,1716022269840,-866.0,0.00039498,16]
[327366155,1716022269849,-866.0,0.00039498,16]
[327366156,1716022269858,-500.0,0.00039498,16]
[327366157,1716022269867,-500.0,0.00039498,16]
[327366158,1716022269876,-500.0,0.00039498,16]
[327366159,1716022269885,-632.6,0.00039498,16]
[327366160,1716022269895,-632.6,0.00039498,16]
[327366161,1716022269904,-632.6,0.00039498,16]
[327366162,1716022269913,-546.56,0.00039498,16]
[327366163,1716022269923,-546.56,0.00039498,16]
[327366164,1716022269932,-546.56,0.00039498,16]
[327366165,1716022269941,-500.0,0.00039498,16]
[327366166,1716022269950,-500.0,0.00039498,16]
[327366167,1716022269959,-500.0,0.00039498,16]
[327366168,1716022269968,-500.0,0.00039498,16]
[327366169,1716022269976,-500.0,0.00039498,16]
[327366170,1716022269985,-500.0,0.00039498,16]
[327366171,1716022269994,-500.0,0.00039498,16]
[327366172,1716022270004,-500.0,0.00039498,16]
[327366173,1716022270013,-500.0,0.00039498,16]
[327366174,1716022270022,-500.0,0.00039498,16]
[327366175,1716022270031,-500.0,0.00039498,16]
[327366176,1716022270040,-557.35969388,0.00039498,16]
[327366177,1716022270050,-500.0,0.00039498,16]
[327366178,1716022270059,-500.0,0.00039498,16]
[327366179,1716022270068,-500.0,0.00039498,16]
[327366180,1716022270077,-500.0,0.00039498,16]
[327366181,1716022270086,-481.48791024,0.00039498,16]
[327366182,1716022270096,-500.0,0.00039498,16]
[327366183,1716022270106,-500.0,0.00039498,16]
[327366184,1716022270115,-500.0,0.00039498,16]
[327366185,1716022270124,-500.0,0.00039498,16]
[327366186,1716022270133,-500.0,0.00039498,16]
[327366187,1716022270142,-500.0,0.00039498,16]
[327366188,1716022270151,-500.0,0.00039498,16]
[327366189,1716022270161,-500.0,0.00039498,16]
[327366190,1716022270171,-500.0,0.00039498,16]
[327366191,1716022270180,-219.22,0.00039498,16]
[327366192,1716022270189,-219.22,0.00039498,16]
[327366193,1716022270198,-219.22,0.00039498,16]
[327366194,1716022270208,-500.0,0.00039498,16]
[327366195,1716022270217,-500.0,0.00039498,16]
[327366196,1716022270231,-624.06159545,0.00039498,16]
[327366197,1716022270240,-500.0,0.00039498,16]
[327366198,1716022270249,-500.0,0.00039498,16]
[327366199,1716022270258,-500.0,0.00039498,16]
[327366200,1716022270269,-500.0,0.00039498,16]
[327366201,1716022270278,-500.0,0.00039498,16]
[327366202,1716022270287,-500.0,0.00039498,16]
[327366203,1716022270296,-500.0,0.00039498,16]
[327366204,1716022270307,-500.0,0.00039498,16]
[327366205,1716022270316,-500.0,0.00039498,16]
[327366206,1716022270325,-500.0,0.00039498,16]
[327366207,1716022270334,-500.0,0.00039498,16]
[327366208,1716022270343,-500.0,0.00039498,16]
[327366209,1716022270352,-4303.93,0.00039498,16]
[327366210,1716022270361,-4303.93,0.00039498,16]
[327366211,1716022270370,-4303.93,0.00039498,16]
[327366212,1716022270379,-500.0,0.00039498,16]
[327366213,1716022270388,-500.0,0.00039498,16]
[327366214,1716022270397,-500.0,0.00039498,16]
[327366215,1716022270407,-500.0,0.00039498,16]
[327366216,1716022270416,-500.0,0.00039498,16]
[327366217,1716022270425,-500.0,0.00039498,16]
[327366218,1716022270434,-6188.67,0.00039498,16]
[327366219,1716022270443,-6188.67,0.00039498,16]
[327366220,1716022270453,-6188.67,0.00039498,16]
[327366221,1716022270462,-2672.82,0.00039498,16]
[327366222,1716022270472,-2672.82,0.00039498,16]
[327366223,1716022270481,-2672.82,0.00039498,16]
[327366224,1716022270491,-514.16793315,0.00039498,16]
[327366225,1716022270501,-151.0,0.00039498,14]
[327366226,1716022270510,-500.0,0.00039498,16]
[327366227,1716022270520,-500.0,0.00039498,16]
[327366228,1716022270529,-500.0,0.00039498,16]
[327366229,1716022270539,-532.15170267,0.00039498,7]
[327366230,1716022270548,-151.0,0.00039498,14]
[327366231,1716022270557,-5736.32,0.00039498,16]
[327366232,1716022270566,-5736.32,0.00039498,16]
[327366233,1716022270575,-5736.32,0.00039498,16]
[327366234,1716022270584,-500.0,0.00039498,16]
[327366235,1716022270594,-500.0,0.00039498,16]
[327366236,1716022270603,-500.0,0.00039498,16]
[327366237,1716022270622,-4868.41,0.00039498,16]
[327366238,1716022270644,-4868.41,0.00039498,16]
[327366239,1716022270668,-4868.41,0.00039498,16]
[327366240,1716022270703,-151.0,0.00039498,14]
[327366241,1716022270740,-500.0,0.00039498,16]
[327366242,1716022270777,-500.0,0.00039498,16]
[327366243,1716022270813,-500.0,0.00039498,16]
[327366244,1716022270834,-151.0,0.00039498,14]
[327366245,1716022270844,-151.0,0.00039498,14]
[327366246,1716022270853,-151.0,0.00039498,14]
[327366247,1716022270864,-151.0,0.00039498,14]
[327366248,1716022270874,-500.0,0.00039498,16]
[327366249,1716022270884,-500.0,0.00039498,16]
[327366250,1716022270894,-500.0,0.00039498,16]
[327366251,1716022270904,-500.0,0.00039498,16]
[327366252,1716022270914,-500.0,0.00039498,16]
[327366253,1716022270924,-500.0,0.00039498,16]
[327366254,1716022270936,-1448.9,0.00039498,16]
[327366255,1716022270946,-1448.9,0.00039498,16]
[327366256,1716022270957,-1448.9,0.00039498,16]
[327366257,1716022270967,-500.0,0.00039498,16]
[327366258,1716022270978,-500.0,0.00039498,16]
[327366259,1716022270989,-1036.305782,0.00039498,14]
[327366260,1716022270999,-500.0,0.00039498,16]
[327366261,1716022271010,-500.0,0.00039498,16]
[327366262,1716022271023,-500.0,0.00039498,16]
[327366263,1716022271034,-500.0,0.00039498,16]
[327366264,1716022271045,-500.0,0.00039498,16]
[327366265,1716022271056,-500.0,0.00039498,16]
[327366266,1716022271067,-500.0,0.00039498,16]
[327366267,1716022271078,-1036.305782,0.00039498,14]
[327366268,1716022271088,-500.0,0.00039498,16]
[327366269,1716022271098,-500.0,0.00039498,16]
[327366270,1716022271108,-500.0,0.00039498,16]
[327366271,1716022271118,-500.0,0.00039498,16]
[327366272,1716022271128,-1255.64,0.00039498,16]
[327366273,1716022271138,-500.0,0.00039498,16]
[327366274,1716022271148,-1255.64,0.00039498,16]
[327366275,1716022271158,-500.0,0.00039498,16]
[327366276,1716022271169,-1255.64,0.00039498,16]
[327366277,1716022271179,-794.817479,0.00039498,14]
[327366278,1716022271189,-687.83,0.00039498,16]
[327366279,1716022271199,-1202.36,0.00039498,16]
[327366280,1716022271210,-1202.36,0.00039498,16]
[327366281,1716022271222,-1202.36,0.00039498,16]
[327366282,1716022271234,-687.83,0.00039498,16]
[327366283,1716022271244,-687.83,0.00039498,16]
[327366284,1716022271254,-597.4,0.00039498,16]
[327366285,1716022271266,-597.4,0.00039498,16]
[327366286,1716022271276,-794.817479,0.00039498,14]
[327366287,1716022271286,-597.4,0.00039498,16]
[327366288,1716022271296,-500.0,0.00039498,16]
[327366289,1716022271307,-500.0,0.00039498,16]
[327366290,1716022271317,-500.0,0.00039498,16]
[327366291,1716022271327,-500.0,0.00039498,16]